bitfinex/quotes_SOLUSD_20240906
["timestamp","ask_amount","ask_price","bid_price","bid_amount"]
[1725584019055,7.7414,129.18,129.14,7.7431]
[1725584019267,20.0,129.17,129.15,1.54840523]
[1725584019555,20.0,129.17,129.14,7.7431]
[1725584019770,20.0,129.17,129.14,9.29153208]
[1725584020757,27.7417,129.17,129.13,27.1027]
[1725584021856,27.7417,129.17,129.14,7.7434]
[1725584022681,20.0,129.17,129.14,19.3574]
[1725584022856,20.0,129.2,129.15,1.54832709]
[1725584023173,7.7408,129.19,129.15,9.29092709]
[1725584023379,20.0,129.18,129.15,9.29092709]
[1725584023566,20.0,129.18,129.16,7.7421]
[1725584024983,15.8908,129.21,129.14,38.7164]
[1725584025157,22.9857,129.24,129.16,1.54826329]
[1725584025690,25.88997176,129.24,129.17,19.3529]
[1725584025867,7.739,129.22,129.18,7.7408]
[1725584026789,20.0,129.21,129.18,7.7408]
[1725584028985,7.7401,129.2,129.17,19.3529]
[1725584029771,27.7394,129.21,129.17,27.0942]
[1725584032465,7.74,129.2,129.17,19.3529]
[1725584032659,20.0,129.19,129.17,19.3529]
[1725584034085,7.7392,129.22,129.17,19.3529]
[1725584034288,20.0,129.21,129.17,19.3529]
[1725584035286,20.0,129.21,129.19,7.7405]
[1725584036085,16.5955,129.24,129.14,51.94106617]
[1725584036261,6.0269,129.27,129.21,7.739]
[1725584036480,20.0,129.26,129.21,7.739]
[1725584036880,27.7364,129.26,129.22,1.54766247]
[1725584037300,27.7364,129.26,129.22,9.28606247]
[1725584037502,27.7364,129.26,129.22,7.7384]
[1725584039291,7.737,129.25,129.21,27.0865]
[1725584039491,20.0,129.24,129.21,27.0865]
[1725584039995,20.0,129.24,129.22,9.28610037]
[1725584040180,20.0,129.25,129.22,7.7386]
[1725584042396,20.0,129.25,129.2,15.2734]
[1725584042586,7.7371,129.25,129.21,7.7389]
[1725584042785,20.0,129.24,129.21,7.7389]
[1725584043096,20.0,129.24,129.22,7.7387]
[1725584045801,20.0,129.24,129.21,7.7391]
[1725584047603,20.0,129.27,129.21,7.7391]
[1725584048206,7.7376,129.24,129.2,27.0894]
[1725584048507,20.0,129.23,129.2,27.0894]
[1725584050884,27.7383,129.23,129.2,19.3498]
[1725584052507,20.0,129.23,129.2,27.0896]
[1725584052712,20.0,129.23,129.21,7.7389]
[1725584052892,20.0,129.24,129.21,7.7389]
[1725584053300,20.0,129.24,129.2,19.3498]
[1725584053496,15.0362,129.28,129.21,79.6203]
[1725584053697,7.7347,129.29,129.25,7.7369]
[1725584053897,7.7338,129.31,129.25,19.3416]
[1725584054093,7.7338,129.31,129.26,45.0]
[1725584054283,7.7327,129.32,129.28,7.735]
[1725584055586,7.7327,129.32,129.27,27.0747]
[1725584056195,20.0,129.31,129.27,27.0747]
[1725584057318,20.0,129.31,129.28,45.0]
[1725584057612,27.7334,129.31,129.27,27.0747]
[1725584057803,7.7343,129.3,129.25,7.7367]
[1725584058003,20.0,129.29,129.25,7.7367]
[1725584058213,20.0,129.29,129.26,7.7361]
[1725584058401,20.0,129.29,129.27,7.7357]
[1725584058731,20.0,129.3,129.27,7.7357]
[1725584059021,20.0,129.31,129.28,19.3375]
[1725584059210,20.0,129.32,129.28,19.3375]
[1725584059405,20.0,129.32,129.29,45.0]
[1725584060291,20.0,129.32,129.29,52.7345]
[1725584060909,20.0,129.32,129.28,19.3375]
[1725584060910,27.7329,129.32,129.28,27.0723]
[1725584061219,20.0,129.32,129.28,27.0723]
[1725584061395,20.0,129.32,129.29,45.0]
[1725584063220,27.7327,129.32,129.29,45.0]
[1725584063715,20.0,129.32,129.29,52.7344]
[1725584065223,27.7327,129.32,129.29,52.7344]
[1725584066417,27.7327,129.32,129.28,27.0724]
[1725584066920,27.7327,129.32,129.29,0.93175445]
[1725584067125,27.7327,129.32,129.28,27.0724]
[1725584073931,7.7337,129.31,129.28,19.3375]
[1725584074226,27.7344,129.3,129.26,7.736]
[1725584074393,7.7344,129.3,129.26,7.736]
[1725584076124,7.7344,129.3,129.27,7.7356]
[1725584076622,7.7334,129.31,129.28,1.54682596]
[1725584076809,20.0,129.3,129.28,1.54682596]
[1725584077330,0.8308386,129.33,129.3,7.7338]
[1725584077898,8.5630386,129.33,129.29,7.7343]
[1725584078711,20.0,129.32,129.29,7.7343]
[1725584082101,20.0,129.32,129.3,45.0]
[1725584082297,20.0,129.32,129.29,7.7343]
[1725584088917,27.7329,129.32,129.28,27.0723]
[1725584089729,27.7329,129.32,129.29,7.7344]
[1725584090829,20.0,129.32,129.29,7.7344]
[1725584091717,20.0,129.32,129.3,7.7335]
[1725584091914,20.8308386,129.33,129.3,52.7335]
[1725584094421,20.8308386,129.33,129.31,1.54639601]
[1725584094733,20.8308386,129.33,129.3,52.7335]
[1725584094928,28.5633386,129.33,129.3,45.0]
[1725584095124,28.5633386,129.33,129.29,27.0695]
[1725584098036,28.5633386,129.33,129.3,7.7339]
[1725584098442,20.8308386,129.33,129.3,7.7339]
[1725584098826,0.8308386,129.33,129.28,13.22466617]
[1725584099023,0.8308386,129.33,129.3,19.3334]
[1725584099217,0.8308386,129.33,129.31,46.54622993]
[1725584099643,0.8308386,129.33,129.32,7.7327]
[1725584100265,0.8308386,129.33,129.32,52.7327]
[1725584102626,0.8308386,129.33,129.32,67.50339533]
[1725584103243,0.8308386,129.33,129.32,90.40319533]
[1725584103621,0.8308386,129.33,129.32,88.85716617]
[1725584106038,30.5076,129.43,129.33,88.6586]
[1725584106239,0.8308386,129.46,129.33,88.6586]
[1725584106240,7.7251,129.45,129.4,7.7276]
[1725584106455,7.7251,129.45,129.41,7.7271]
[1725584107023,31.3366386,129.46,129.42,7.7266]
[1725584107446,23.6120386,129.46,129.43,27.041]
[1725584107849,23.6120386,129.46,129.43,19.3154]
[1725584108053,31.3364386,129.46,129.43,19.3154]
[1725584109728,7.725,129.45,129.41,7.7271]
[1725584110748,23.6120386,129.46,129.4,27.0468]
[1725584110749,7.7256,129.44,129.4,27.0468]
[1725584111840,7.7256,129.44,129.41,7.7273]
[1725584113559,23.6120386,129.46,129.4,19.319]
[1725584113560,31.3368386,129.46,129.42,7.7266]
[1725584115540,7.725,129.45,129.41,7.7271]
[1725584116165,7.726,129.44,129.4,27.0464]
[1725584116665,7.725,129.45,129.41,52.7272]
[1725584117741,16.9725386,129.46,129.43,7.7259]
[1725584118063,8.5556386,129.46,129.42,27.0433]
[1725584118639,8.5556386,129.46,129.43,7.7261]
[1725584119158,8.5556386,129.46,129.42,27.0431]
[1725584119550,0.8308386,129.46,129.43,7.7257]
[1725584120851,0.8308386,129.46,129.43,34.665]
[1725584121065,0.8308386,129.46,129.44,52.7253]
[1725584122067,0.8308386,129.46,129.43,27.0397]
[1725584123044,8.5552386,129.46,129.43,27.0397]
[1725584123455,0.8308386,129.46,129.43,27.0397]
[1725584124056,0.8308386,129.46,129.44,8.53520058]
[1725584124445,0.8308386,129.46,129.45,7.7249]
[1725584126464,0.8308386,129.46,129.43,19.314]
[1725584126652,0.8308386,129.46,129.44,52.7253]
[1725584130973,0.8308386,129.46,129.45,27.0373]
[1725584131187,0.8308386,129.46,129.45,73.58183589]
[1725584131480,0.8308386,129.46,129.45,89.07013589]
[1725584131765,0.8308386,129.46,129.45,139.07013589]
[1725584132069,0.8308386,129.46,129.45,137.5256]
[1725584133072,15.3991,129.57,129.52,7.7203]
[1725584133255,0.8308386,129.58,129.54,7.7193]
[1725584134762,0.8308386,129.58,129.55,45.0]
[1725584134966,0.8308386,129.58,129.57,7.7178]
[1725584135283,0.8308386,129.58,129.57,52.7178]
[1725584135480,0.8308386,129.58,129.57,53.13506988]
[1725584136674,0.8308386,129.58,129.57,52.7178]
[1725584142569,0.8308386,129.58,129.55,19.2968]
[1725584143872,0.8308386,129.58,129.56,45.0]
[1725584144284,0.8308386,129.58,129.57,7.7178]
[1725584144457,0.8308386,129.58,129.57,52.7178]
[1725584145307,0.8308386,129.58,129.57,54.26086022]
[1725584147965,0.8308386,129.58,129.57,52.7178]
[1725584150500,0.8308386,129.58,129.57,72.0123]
[1725584150994,0.8308386,129.58,129.57,72.97887617]
[1725584151373,0.8308386,129.58,129.57,72.0123]
[1725584152696,0.8308386,129.58,129.57,72.99786121]
[1725584153194,0.8308386,129.58,129.57,72.0123]
[1725584155209,0.8308386,129.58,129.57,73.55529753]
[1725584155496,0.8308386,129.58,129.57,72.0123]
[1725584156101,0.8308386,129.58,129.57,27.0123]
[1725584156298,0.8308386,129.58,129.57,19.2945]
[1725584156504,0.8308386,129.58,129.57,27.0123]
[1725584157206,0.8308386,129.58,129.57,28.55534031]
[1725584157696,0.8308386,129.58,129.57,73.55534031]
[1725584158107,0.8308386,129.58,129.57,72.0123]
[1725584158304,0.8308386,129.58,129.57,19.2945]
[1725584159276,0.8308386,129.58,129.57,27.0123]
[1725584159905,0.8308386,129.58,129.57,72.0123]
[1725584160602,0.8308386,129.58,129.56,7.718]
[1725584160801,0.8308386,129.58,129.57,9.26033322]
[1725584161284,0.8308386,129.58,129.57,7.7178]
[1725584161890,0.8308386,129.58,129.57,9.25967609]
[1725584162090,0.8308386,129.58,129.57,54.25967609]
[1725584162304,0.8308386,129.58,129.57,52.7178]
[1725584162480,0.8308386,129.58,129.57,54.26004576]
[1725584163386,0.8308386,129.58,129.57,87.0695868]
[1725584163710,0.8308386,129.58,129.57,105.52734104]
[1725584163916,0.8308386,129.58,129.57,40.52734104]
[1725584164103,0.8308386,129.58,129.57,9.2575187]
[1725584164815,0.8308386,129.58,129.57,42.06821992]
[1725584165403,0.8308386,129.58,129.57,108.81734104]
[1725584165597,0.8308386,129.58,129.57,128.81734104]
[1725584165803,0.8308386,129.58,129.57,105.52734104]
[1725584168214,0.8308386,129.58,129.57,27.7178]
[1725584168799,0.8308386,129.58,129.57,7.7178]
[1725584169417,0.8308386,129.58,129.57,9.26061972]
[1725584169620,0.8308386,129.58,129.57,52.7178]
[1725584171691,0.8308386,129.58,129.57,54.26052676]
[1725584171895,0.8308386,129.58,129.57,54.26052671]
[1725584172097,0.8308386,129.58,129.57,52.7178]
[1725584173319,0.8308386,129.58,129.57,7.7178]
[1725584174696,0.8308386,129.58,129.57,85.52734104]
[1725584175348,0.8308386,129.58,129.57,101.62054104]
[1725584176803,0.8308386,129.58,129.57,7.7178]
[1725584177503,0.8308386,129.58,129.57,9.26056354]
[1725584177703,0.8308386,129.58,129.57,7.7178]
[1725584178209,0.8308386,129.58,129.57,52.7178]
[1725584182427,0.8308386,129.58,129.57,65.84024121]
[1725584184517,0.8308386,129.58,129.57,117.38296808]
[1725584185034,0.8308386,129.58,129.57,137.38296808]
[1725584185509,0.8308386,129.58,129.57,135.84024121]
[1725584187930,23.104,129.67,129.63,19.2846]
[1725584188135,23.104,129.67,129.64,45.0]
[1725584188526,23.104,129.67,129.65,7.713]
[1725584188925,23.104,129.67,129.64,52.7134]
[1725584189109,30.8159,129.67,129.64,7.7134]
[1725584189317,7.7124,129.66,129.63,19.2846]
[1725584189833,7.7124,129.66,129.63,26.9987]
[1725584190357,30.816,129.67,129.63,26.9987]
[1725584193543,7.7125,129.66,129.63,19.2846]
[1725584194247,7.7125,129.66,129.64,1.36898816]
[1725584194535,30.8159,129.67,129.63,26.9987]
[1725584196141,7.7127,129.66,129.63,19.2846]
[1725584196435,7.7156,129.61,129.58,7.7172]
[1725584196636,7.7173,129.58,129.53,19.2991]
[1725584196934,23.7939,129.59,129.53,19.2991]
[1725584197316,16.0771,129.59,129.56,7.718]
[1725584197514,16.0771,129.59,129.55,27.0158]
[1725584197515,23.7941,129.59,129.55,27.0158]
[1725584197716,7.7178,129.57,129.54,7.7196]
[1725584197944,13.9104,129.58,129.54,7.7196]
[1725584199322,6.193,129.58,129.55,7.7189]
[1725584201844,6.193,129.58,129.54,19.2987]
[1725584202026,6.193,129.58,129.51,19.3024]
[1725584202719,7.7179,129.57,129.54,7.7195]
[1725584202918,6.193,129.58,129.55,1.5431523]
[1725584203144,16.0771,129.59,129.52,38.6021]
[1725584203323,16.0771,129.59,129.56,7.718]
[1725584203520,7.7156,129.61,129.55,19.2969]
[1725584203739,7.7156,129.61,129.57,7.7174]
[1725584204320,22.0899,129.66,129.58,45.0]
[1725584204520,22.0899,129.66,129.59,1.47057455]
[1725584204822,22.0899,129.66,129.63,7.7138]
[1725584205246,22.0899,129.66,129.63,9.18406571]
[1725584205544,6.2064,129.66,129.63,9.18406571]
[1725584205733,6.2064,129.66,129.63,7.7138]
[1725584206433,13.919,129.66,129.62,27.0015]
[1725584206631,6.2064,129.66,129.62,27.0015]
[1725584207645,6.2064,129.66,129.62,19.2867]
[1725584207855,6.2064,129.66,129.63,7.7137]
[1725584210231,7.7119,129.67,129.64,0.50297441]
[1725584210644,22.0899,129.69,129.62,19.2867]
[1725584210645,7.7115,129.68,129.62,19.2867]
[1725584210834,20.0,129.67,129.64,7.7135]
[1725584211349,20.0,129.67,129.65,1.54243164]
[1725584211524,20.0,129.68,129.65,7.7127]
[1725584211929,20.0,129.68,129.66,7.7123]
[1725584212143,20.0,129.68,129.65,7.7128]
[1725584213948,20.0,129.68,129.66,7.7123]
[1725584214150,22.0899,129.69,129.66,7.7123]
[1725584214451,0.8308386,129.71,129.68,7.7109]
[1725584215651,20.8308386,129.71,129.68,7.7109]
[1725584216551,28.5404386,129.71,129.68,7.7109]
[1725584217056,7.7101,129.7,129.66,26.9929]
[1725584217641,7.7101,129.7,129.67,7.7118]
[1725584217840,7.712,129.67,129.63,26.9985]
[1725584218052,7.7114,129.68,129.64,7.7132]
[1725584218247,7.712,129.67,129.63,26.9987]
[1725584218461,7.7115,129.68,129.64,7.7135]
[1725584218633,40.1054386,129.71,129.63,19.2845]
[1725584219661,7.7116,129.68,129.64,7.7135]
[1725584220152,7.7119,129.67,129.63,26.9985]
[1725584220736,19.2769,129.69,129.6,19.289]
[1725584220968,7.7126,129.66,129.62,7.7147]
[1725584221145,7.7131,129.65,129.61,7.7152]
[1725584221348,7.7126,129.66,129.62,7.7148]
[1725584221542,7.712,129.67,129.62,7.7148]
[1725584221739,7.7125,129.66,129.62,7.7148]
[1725584222054,19.2769,129.69,129.6,19.289]
[1725584222255,7.7141,129.64,129.6,27.0048]
[1725584222546,7.7143,129.63,129.6,19.289]
[1725584222859,7.7137,129.64,129.6,19.289]
[1725584223045,7.7137,129.64,129.6,27.0049]
[1725584223251,7.7132,129.65,129.6,27.0049]
[1725584223454,20.0,129.64,129.6,27.0049]
[1725584224663,13.9362,129.66,129.6,19.289]
[1725584224852,20.0,129.65,129.61,46.54282318]
[1725584225559,7.7119,129.67,129.62,19.2868]
[1725584225767,20.0,129.66,129.63,1.54257716]
[1725584226462,20.0,129.66,129.64,7.7136]
[1725584226649,7.7101,129.7,129.66,7.7123]
[1725584226839,16.6730386,129.71,129.64,19.2836]
[1725584227461,16.6730386,129.71,129.65,7.7129]
[1725584227462,7.7111,129.69,129.65,7.7129]
[1725584227964,7.7102,129.7,129.66,7.7124]
[1725584228169,16.6730386,129.71,129.66,19.2808]
[1725584228364,24.3827386,129.71,129.67,52.7117]
[1725584229274,0.8308386,129.71,129.67,52.7117]
[1725584229845,8.5403386,129.71,129.67,7.7117]
[1725584231650,8.5403386,129.71,129.68,1.5421146]
[1725584232469,0.8308386,129.71,129.68,7.7111]
[1725584232669,20.8308386,129.71,129.68,7.7111]
[1725584233356,28.5404386,129.71,129.67,7.7117]
[1725584237572,28.5404386,129.71,129.68,7.7112]
[1725584237962,20.8308386,129.71,129.68,7.7112]
[1725584239392,28.5403386,129.71,129.67,7.7117]
[1725584239672,20.8308386,129.71,129.66,19.2808]
[1725584239853,7.7104,129.7,129.66,26.9931]
[1725584241672,20.8308386,129.71,129.63,19.2842]
[1725584241857,7.7114,129.68,129.64,7.7132]
[1725584244856,7.7126,129.66,129.63,26.9983]
[1725584245060,7.713,129.65,129.61,7.7152]
[1725584246772,7.7127,129.66,129.6,19.2887]
[1725584246987,7.7127,129.66,129.63,7.7142]
[1725584247279,7.7127,129.66,129.63,9.25679861]
[1725584247574,7.712,129.67,129.63,9.25679861]
[1725584247879,20.0,129.66,129.63,9.25679861]
[1725584248386,20.0,129.66,129.63,7.7142]
[1725584249280,7.712,129.67,129.63,7.7142]
[1725584249577,15.6322,129.68,129.64,45.0]
[1725584249578,7.7115,129.68,129.64,45.0]
[1725584249776,7.7115,129.68,129.64,7.7134]
[1725584250878,7.7119,129.67,129.63,26.9982]
[1725584252157,7.7119,129.67,129.64,7.7136]
[1725584252854,7.7119,129.67,129.63,19.2842]
[1725584253074,7.715,129.62,129.58,7.7168]
[1725584253275,19.2843,129.64,129.56,7.718]
[1725584253481,7.717,129.59,129.55,19.2965]
[1725584254275,7.7162,129.6,129.55,19.2965]
[1725584254586,7.7158,129.61,129.55,19.2965]
[1725584254961,7.7158,129.61,129.57,7.7174]
[1725584255261,23.3472,129.62,129.58,7.7171]
[1725584255463,20.0,129.61,129.58,7.7171]
[1725584255855,27.7155,129.61,129.57,27.012]
[1725584256360,20.0,129.61,129.58,52.717]
[1725584256677,20.0,129.61,129.58,7.717]
[1725584257564,27.7154,129.61,129.57,27.0119]
[1725584257978,27.7154,129.61,129.58,7.7172]
[1725584258286,27.7154,129.61,129.57,27.012]
[1725584258660,20.0,129.61,129.58,7.7171]
[1725584258984,20.0,129.61,129.59,7.7165]
[1725584259172,20.0,129.62,129.59,7.7165]
[1725584259989,20.0,129.62,129.54,38.5966]
[1725584260166,20.0,129.62,129.6,7.7159]
[1725584260366,20.0,129.63,129.6,7.7159]
[1725584260791,27.7142,129.63,129.6,7.7159]
[1725584261474,27.7142,129.63,129.59,27.0075]
[1725584261993,7.7152,129.62,129.59,19.2911]
[1725584262373,7.7155,129.61,129.58,7.7169]
[1725584262891,7.7155,129.61,129.57,7.7175]
[1725584263591,7.7155,129.61,129.58,7.7171]
[1725584263964,7.7154,129.61,129.57,7.7173]
[1725584264780,7.716,129.6,129.56,27.0127]
[1725584265191,7.716,129.6,129.57,7.7176]
[1725584265421,20.0,129.63,129.56,27.013]
[1725584265692,7.7159,129.61,129.57,7.7177]
[1725584266488,7.7159,129.61,129.56,19.2947]
[1725584266489,7.7163,129.6,129.56,27.0129]
[1725584268265,20.0,129.63,129.54,19.2989]
[1725584268469,7.7176,129.58,129.54,27.0181]
[1725584271195,7.7169,129.59,129.55,7.7187]
[1725584273901,7.7178,129.57,129.54,27.0182]
[1725584274196,7.7174,129.58,129.54,27.0182]
[1725584274590,7.7174,129.58,129.55,7.7189]
[1725584277381,7.7169,129.59,129.55,7.7189]
[1725584277904,7.7162,129.6,129.56,7.718]
[1725584278089,20.0,129.59,129.56,7.718]
[1725584278799,20.0,129.59,129.57,27.0118]
[1725584279001,20.0,129.6,129.58,7.7168]
[1725584279205,7.715,129.62,129.58,7.7168]
[1725584279389,20.0,129.61,129.58,7.7168]
[1725584279589,27.7155,129.61,129.58,7.7168]
[1725584280484,20.0,129.61,129.58,7.7168]
[1725584281093,27.7158,129.61,129.57,27.0121]
[1725584281809,20.0,129.61,129.59,7.7165]
[1725584282190,20.0,129.62,129.59,7.7165]
[1725584282887,7.7155,129.61,129.57,42.2496]
[1725584283285,27.715,129.62,129.58,7.717]
[1725584283882,20.0,129.62,129.59,7.7164]
[1725584285890,27.715,129.62,129.59,7.7164]
[1725584287607,27.715,129.62,129.58,19.2916]
[1725584287608,7.7154,129.61,129.58,19.2916]
[1725584289414,7.7154,129.61,129.58,27.0087]
[1725584289710,7.7154,129.61,129.57,7.7176]
[1725584289916,35.5608,129.62,129.54,7.719]
[1725584290092,7.7169,129.59,129.55,7.7189]
[1725584294318,7.7169,129.59,129.56,7.7182]
[1725584294498,7.7162,129.6,129.56,7.7182]
[1725584294815,20.0,129.59,129.56,7.7182]
[1725584296617,20.0,129.59,129.56,19.2947]
[1725584296801,20.0,129.6,129.58,7.7168]
[1725584297007,20.0,129.61,129.58,7.7168]
[1725584298422,20.0,129.61,129.59,7.7165]
[1725584299319,21.6499,129.65,129.57,38.5882]
[1725584299523,23.2739,129.65,129.61,7.7152]
[1725584299728,7.7131,129.65,129.61,7.7152]
[1725584301020,20.0,129.64,129.61,7.7152]
[1725584301615,27.7137,129.64,129.6,27.0046]
[1725584303631,27.7137,129.64,129.61,7.7154]
[1725584304315,20.0,129.64,129.61,7.7154]
[1725584305927,20.0,129.64,129.62,7.7148]
[1725584306127,20.0,129.65,129.62,7.7148]
[1725584306337,27.7131,129.65,129.62,7.7148]
[1725584307109,27.7131,129.65,129.63,7.7138]
[1725584307110,20.0,129.65,129.63,7.7138]
[1725584307312,20.1057386,129.71,129.64,19.2827]
[1725584307541,20.1057386,129.71,129.66,7.7124]
[1725584307713,7.7108,129.69,129.65,7.7127]
[1725584308615,20.0,129.68,129.65,7.7127]
[1725584309334,20.0,129.68,129.66,7.7124]
[1725584310540,20.0,129.68,129.64,26.9961]
[1725584310541,27.7117,129.68,129.64,26.9961]
[1725584314537,27.7117,129.68,129.65,7.713]
[1725584314735,20.0,129.68,129.65,7.713]
[1725584315631,0.8308386,129.71,129.67,7.7115]
[1725584315831,0.8308386,129.71,129.66,20.82346623]
[1725584315832,20.8308386,129.71,129.66,20.82346623]
[1725584316032,20.8308386,129.71,129.66,19.2811]
[1725584316339,20.8308386,129.71,129.67,7.7116]
[1725584316340,28.5406386,129.71,129.67,7.7116]
[1725584318520,7.7101,129.7,129.66,26.9933]
[1725584318846,20.8308386,129.71,129.65,7.7127]
[1725584319034,20.8308386,129.71,129.64,19.2839]
[1725584319035,7.7122,129.67,129.64,19.2839]
[1725584319233,7.7113,129.68,129.64,19.2839]
[1725584320019,7.7109,129.69,129.66,7.7124]
[1725584320225,20.0,129.68,129.66,7.7124]
[1725584320846,20.0,129.68,129.6,44.6795]
[1725584320847,20.0,129.68,129.67,7.7118]
[1725584321150,7.7102,129.7,129.66,7.7121]
[1725584321338,20.0,129.69,129.66,7.7121]
[1725584322151,27.7108,129.69,129.66,7.7121]
[1725584327061,20.0,129.69,129.66,7.7121]
[1725584327433,0.8308386,129.71,129.66,13.1165091]
[1725584327757,0.8308386,129.71,129.69,19.2758]
[1725584327930,0.8308386,129.71,129.7,9.25185436]
[1725584328759,0.8308386,129.71,129.7,54.25184993]
[1725584329142,0.8308386,129.71,129.7,52.7101]
[1725584329451,0.8308386,129.71,129.7,54.25161636]
[1725584329636,0.8308386,129.71,129.7,52.7101]
[1725584330738,0.8308386,129.71,129.7,54.25166649]
[1725584331253,0.8308386,129.71,129.7,52.7101]
[1725584333232,0.8308386,129.71,129.7,7.7101]
[1725584334564,0.8308386,129.71,129.7,9.25192047]
[1725584337449,0.8308386,129.71,129.7,9.25191878]
[1725584337642,0.8308386,129.71,129.7,54.25191878]
[1725584338142,0.8308386,129.71,129.7,52.7101]
[1725584338565,0.8308386,129.71,129.7,54.25179245]
[1725584338762,0.8308386,129.71,129.7,52.7101]
[1725584340336,0.8308386,129.71,129.7,7.7101]
[1725584340862,0.8308386,129.71,129.7,54.25185052]
[1725584341864,0.8308386,129.71,129.7,52.7101]
[1725584343737,0.8308386,129.71,129.7,7.7101]
[1725584344137,0.8308386,129.71,129.69,19.2758]
[1725584344374,0.8308386,129.71,129.69,26.9864]
[1725584344560,0.8308386,129.71,129.69,19.2758]
[1725584344764,8.5403386,129.71,129.68,7.711]
[1725584345152,8.5403386,129.71,129.66,19.2797]
[1725584345153,7.7102,129.7,129.67,7.7116]
[1725584346041,20.0,129.69,129.64,19.2841]
[1725584346242,0.8308386,129.71,129.64,19.2841]
[1725584346665,7.7116,129.68,129.64,26.9976]
[1725584352563,7.7108,129.69,129.64,26.9976]
[1725584352762,20.0,129.68,129.64,26.9976]
[1725584354669,20.0,129.68,129.65,7.7127]
[1725584355170,20.0,129.69,129.65,7.7127]
[1725584359675,27.7107,129.69,129.65,7.7127]
[1725584359875,27.7107,129.69,129.64,19.2841]
[1725584360064,27.7107,129.69,129.64,26.9972]
[1725584361276,27.7107,129.69,129.64,19.2841]
[1725584361475,0.8308386,129.71,129.66,19.2808]
[1725584361974,0.8308386,129.71,129.67,7.7113]
[1725584362551,20.8308386,129.71,129.67,7.7113]
[1725584362776,0.8308386,129.71,129.67,7.7113]
[1725584364473,20.8308386,129.71,129.66,19.2808]
[1725584364677,20.8308386,129.71,129.67,7.7116]
[1725584365766,20.8308386,129.71,129.68,7.7109]
[1725584365967,0.8308386,129.71,129.68,7.7109]
[1725584367565,0.8308386,129.71,129.68,26.9889]
[1725584371863,0.8308386,129.71,129.68,19.278]
[1725584373085,0.8308386,129.71,129.7,7.7101]
[1725584376184,0.8308386,129.71,129.7,26.9853]
[1725584381788,0.8308386,129.71,129.7,19.2752]
[1725584384093,0.8308386,129.71,129.7,42.8594]
[1725584384583,0.8308386,129.71,129.7,87.8594]
[1725584388595,23.1790386,129.84,129.75,19.2676]
[1725584388790,23.1790386,129.84,129.74,7.7072]
[1725584388791,7.7054,129.78,129.74,7.7072]
[1725584389090,7.7059,129.77,129.73,7.7081]
[1725584389674,7.7055,129.78,129.73,7.7081]
[1725584389904,7.7055,129.78,129.74,7.7075]
[1725584390704,20.0,129.77,129.74,7.7075]
[1725584391203,27.7059,129.77,129.73,7.7081]
[1725584395383,20.0,129.77,129.72,19.2708]
[1725584395603,20.0,129.77,129.74,7.7075]
[1725584395804,27.706,129.77,129.73,7.708]
[1725584396787,7.7066,129.76,129.73,7.708]
[1725584396989,7.7071,129.75,129.7,60.8741]
[1725584397192,7.7077,129.74,129.67,22.3221]
[1725584397392,7.7077,129.74,129.71,19.2736]
[1725584397601,7.7077,129.74,129.71,26.983]
[1725584398191,7.7073,129.75,129.71,26.983]
[1725584401184,7.7092,129.72,129.68,7.7111]
[1725584401391,22.6289,129.74,129.66,19.2799]
[1725584401588,22.6289,129.74,129.68,7.7112]
[1725584401589,7.7093,129.72,129.68,7.7112]
[1725584401806,7.7098,129.71,129.67,7.7116]
[1725584402695,7.7102,129.7,129.66,26.9921]
[1725584403908,7.7102,129.7,129.67,7.7118]